lending/lending_fUSD_20250409
["ID","MTS","AMOUNT","RATE_DAILY","PERIOD"]
[357611705,1744235508697,-500.0,0.00039178,2]
[357611706,1744235508709,-500.0,0.00039178,2]
[357611707,1744235508719,-500.0,0.00039178,2]
[357611708,1744235508729,-500.0,0.00039178,2]
[357611709,1744235508738,-524.33,0.00039178,2]
[357611710,1744235508748,-582.79,0.00039178,2]
[357611711,1744235508757,-500.0,0.00039178,2]
[357611712,1744235508767,-529.9,0.00039178,2]
[357611713,1744235508778,-500.0,0.00039178,2]
[357611714,1744235508788,-520.25,0.00039178,2]
[357611715,1744235508798,-500.0,0.00039178,2]
[357611716,1744235508809,-208.3742245,0.00039178,2]
[357611717,1744235508819,-500.0,0.00039178,2]
[357611718,1744235508828,-500.0,0.00039178,2]
[357611719,1744235508838,-500.0,0.00039178,2]
[357611720,1744235508848,-563.51,0.00039178,2]
[357611721,1744235508858,-500.0,0.00039178,2]
[357611722,1744235508868,-515.76,0.00039178,2]
[357611723,1744235508878,-1455.64,0.00039178,2]
[357611724,1744235508887,-944.08,0.00039178,2]
[357611725,1744235508898,-500.0,0.00039178,2]
[357611726,1744235508907,-500.0,0.00039178,2]
[357611727,1744235508916,-1259.75,0.00039178,2]
[357611728,1744235508926,-949.83,0.00039178,2]
[357611729,1744235508936,-867.9,0.00039178,2]
[357611730,1744235508946,-500.0,0.00039178,2]
[357611731,1744235508956,-500.0,0.00039178,2]
[357611732,1744235508965,-500.0,0.00039178,2]
[357611733,1744235508975,-712.22,0.00039178,2]
[357611734,1744235508984,-500.0,0.00039178,2]
[357611735,1744235508993,-500.0,0.00039178,2]
[357611736,1744235509003,-529.23376089,0.00039178,2]
[357611737,1744235509012,-676.54,0.00039178,2]
[357611738,1744235509022,-2873.89,0.00039178,2]
[357611739,1744235509031,-528.03365153,0.00039178,2]
[357611740,1744235509041,-500.0,0.00039178,2]
[357611741,1744235509051,-151.0,0.00039178,14]
[357611742,1744235509060,-151.0,0.00039178,14]
[357611743,1744235509070,-500.0,0.00039178,2]
[357611744,1744235509080,-865.86,0.00039178,2]
[357611745,1744235509089,-325.64692535,0.00039178,2]
[357611746,1744235509100,-734.44,0.00039178,2]
[357611747,1744235509110,-500.0,0.00039178,2]
[357611748,1744235509119,-1213.14,0.00039178,2]
[357611749,1744235509129,-510.47,0.00039178,2]
[357611750,1744235509139,-500.0,0.00039178,2]
[357611751,1744235509148,-500.0,0.00039178,2]
[357611752,1744235509158,-500.0,0.00039178,2]
[357611753,1744235509167,-1235.75,0.00039178,2]
[357611754,1744235509177,-500.0,0.00039178,2]
[357611755,1744235509186,-2062.74,0.00039178,2]
[357611756,1744235509196,-500.0,0.00039178,2]
[357611757,1744235509209,-500.0,0.00039178,2]
[357611758,1744235509221,-1627.43,0.00039178,2]
[357611759,1744235509234,-779.34,0.00039178,2]
[357611760,1744235509245,-500.0,0.00039178,2]
[357611761,1744235509255,-1736.3,0.00039178,2]
[357611762,1744235509265,-500.0,0.00039178,2]
[357611763,1744235509275,-500.0,0.00039178,2]
[357611764,1744235509284,-322.127338,0.00039178,14]
[357611765,1744235509293,-500.0,0.00039178,2]
[357611766,1744235509303,-579.96,0.00039178,2]
[357611767,1744235509313,-500.0,0.00039178,2]
[357611768,1744235509323,-322.127344,0.00039178,14]
[357611769,1744235509332,-2303.11,0.00039178,2]
[357611770,1744235509343,-500.0,0.00039178,2]
[357611771,1744235509353,-21393.93,0.00039178,2]
[357611772,1744235509364,-438.390124,0.00039178,14]
[357611773,1744235509374,-515.39560605,0.00039178,2]
[357611774,1744235509384,-663.86,0.00039178,2]
[357611775,1744235509394,-500.0,0.00039178,2]
[357611776,1744235509403,-1487.15,0.00039178,2]
[357611777,1744235509413,-500.0,0.00039178,2]
[357611778,1744235509422,-1444.32,0.00039178,2]
[357611779,1744235509432,-500.0,0.00039178,2]
[357611780,1744235509441,-531.51,0.00039178,2]
[357611781,1744235509453,-500.0,0.00039178,2]
[357611782,1744235509463,-798.61,0.00039178,2]
[357611783,1744235509473,-438.39012,0.00039178,14]
[357611784,1744235509483,-1070.68,0.00039178,2]
[357611785,1744235509494,-500.0,0.00039178,2]
[357611786,1744235509503,-500.0,0.00039178,2]
[357611787,1744235509514,-1448.83,0.00039178,2]
[357611788,1744235509528,-500.0,0.00039178,2]
[357611789,1744235509543,-151.0,0.00039178,14]
[357611790,1744235509552,-675.07,0.00039178,2]
[357611791,1744235509561,-500.0,0.00039178,2]
[357611792,1744235509571,-680.79,0.00039178,2]
[357611793,1744235509581,-720.05,0.00039178,2]
[357611794,1744235509590,-4523.75,0.00039178,2]
[357611795,1744235509599,-1045.81,0.00039178,2]
[357611796,1744235509609,-259.27356571,0.00039178,2]
[357611797,1744235509618,-2369.93,0.00039178,2]
[357611798,1744235509628,-500.0,0.00039178,2]
[357611799,1744235509637,-815.31,0.00039178,2]
[357611800,1744235509646,-500.0,0.00039178,2]
[357611801,1744235509655,-500.0,0.00039178,2]
[357611802,1744235509665,-1072.51,0.00039178,2]
[357611803,1744235509674,-3877.45,0.00039178,2]
[357611804,1744235509684,-920.84,0.00039178,2]
[357611805,1744235509694,-500.0,0.00039178,2]
[357611806,1744235509704,-1250.82,0.00039178,2]
[357611807,1744235509713,-500.0,0.00039178,2]
[357611808,1744235509722,-1683.83,0.00039178,2]
[357611809,1744235509731,-500.0,0.00039178,2]
[357611810,1744235509740,-904.45,0.00039178,2]
[357611811,1744235509750,-500.0,0.00039178,2]
[357611812,1744235509759,-8073.34,0.00039178,2]
[357611813,1744235509769,-500.0,0.00039178,2]
[357611814,1744235509778,-951.26,0.00039178,2]
[357611815,1744235509788,-500.0,0.00039178,2]
[357611816,1744235509798,-567.52,0.00039178,2]
[357611817,1744235509808,-500.0,0.00039178,2]
[357611818,1744235509818,-500.0,0.00039178,2]
[357611819,1744235509827,-500.0,0.00039178,2]
[357611820,1744235509837,-714.37,0.00039178,2]
[357611821,1744235509847,-507.52,0.00039178,2]
[357611822,1744235509858,-500.0,0.00039178,2]
[357611823,1744235509867,-7044.24,0.00039178,2]
[357611824,1744235509877,-1034.56,0.00039178,2]
[357611825,1744235509887,-593.89,0.00039178,2]
[357611826,1744235509896,-614.18,0.00039178,2]
[357611827,1744235509906,-500.0,0.00039178,2]
[357611828,1744235509915,-500.0,0.00039178,2]
[357611829,1744235509925,-500.0,0.00039178,2]
[357611830,1744235509934,-1165.25,0.00039178,2]
[357611831,1744235509943,-1119.95,0.00039178,2]
[357611832,1744235509953,-500.0,0.00039178,120]
[357611833,1744235509962,-500.0,0.00039178,2]
[357611834,1744235509971,-500.0,0.00039178,2]
[357611835,1744235509981,-1010.11,0.00039178,2]
[357611836,1744235509990,-3541.99,0.00039178,2]
[357611837,1744235509999,-505.05050086,0.00039178,2]
[357611838,1744235510009,-2285.66,0.00039178,2]
[357611839,1744235510018,-1097.67,0.00039178,2]
[357611840,1744235510028,-500.0,0.00039178,2]
[357611841,1744235510037,-500.0,0.00039178,2]
[357611842,1744235510047,-500.0,0.00039178,2]
[357611843,1744235510056,-737.02,0.00039178,2]
[357611844,1744235510065,-500.0,0.00039178,2]
[357611845,1744235510074,-500.0,0.00039178,2]
[357611846,1744235510083,-1205.42,0.00039178,2]
[357611847,1744235510092,-508.9940135,0.00039178,2]
[357611848,1744235510102,-622.25,0.00039178,2]
[357611849,1744235510111,-626.72,0.00039178,2]
[357611850,1744235510120,-1595.13,0.00039178,2]
[357611851,1744235510129,-1037.81,0.00039178,2]
[357611852,1744235510139,-993.54,0.00039178,2]
[357611853,1744235510148,-500.0,0.00039178,2]
[357611854,1744235510157,-500.0,0.00039178,2]
[357611855,1744235510166,-4569.67,0.00039178,2]
[357611856,1744235510175,-930.17,0.00039178,2]
[357611857,1744235510185,-561.53731909,0.00039178,2]
[357611858,1744235510194,-529.97171252,0.00039178,2]
[357611859,1744235510203,-597.13,0.00039178,2]
[357611860,1744235510212,-925.07,0.00039178,2]
[357611861,1744235510221,-500.0,0.00039178,2]
[357611862,1744235510230,-500.0,0.00039178,2]
[357611863,1744235510239,-500.0,0.00039178,2]
[357611864,1744235510249,-500.0,0.00039178,2]
[357611865,1744235510259,-500.0,0.00039178,2]
[357611866,1744235510268,-500.0,0.00039178,2]
[357611867,1744235510277,-154.400418,0.00039178,14]
[357611868,1744235510286,-733.46,0.00039178,2]
[357611869,1744235510295,-500.0,0.00039178,2]
[357611870,1744235510305,-803.16,0.00039178,2]
[357611871,1744235510314,-154.400418,0.00039178,14]
[357611872,1744235510323,-1134.05,0.00039178,2]
[357611873,1744235510332,-500.0,0.00039178,2]
[357611874,1744235510341,-6999.86,0.00039178,2]
[357611875,1744235510351,-500.0,0.00039178,2]
[357611876,1744235510361,-342.36071851,0.00039178,2]
[357611877,1744235510370,-500.0,0.00039178,2]
[357611878,1744235510379,-2881.42,0.00039178,2]
[357611879,1744235510388,-154.400418,0.00039178,14]
[357611880,1744235510397,-500.0,0.00039178,2]
[357611881,1744235510406,-154.400417,0.00039178,14]
[357611882,1744235510415,-42423.7,0.00039178,2]
[357611883,1744235510424,-500.0,0.00039178,2]
[357611884,1744235510631,-1337.8,0.00039178,2]
[357611885,1744235510641,-1079.31,0.00039178,2]
[357611886,1744235510651,-509.05,0.00039178,2]
[357611887,1744235510661,-197.45923072,0.00039178,2]
[357611888,1744235510670,-500.0,0.00039178,2]
[357611889,1744235510680,-500.0,0.00039178,2]
[357611890,1744235510689,-500.0,0.00039178,2]
[357611891,1744235510698,-500.0,0.00039178,2]
[357611892,1744235510708,-1032.24,0.00039178,2]
[357611893,1744235510717,-151.0,0.00039178,14]
[357611894,1744235510726,-500.0,0.00039178,2]
[357611895,1744235510736,-1046.49,0.00039178,2]
[357611896,1744235510745,-500.0,0.00039178,2]
[357611897,1744235510755,-1965.19,0.00039178,2]
[357611898,1744235510764,-1002.75,0.00039178,2]
[357611899,1744235510773,-23770.72,0.00039178,2]
[357611900,1744235510783,-197.0709348,0.00039178,2]
[357611901,1744235510792,-500.0,0.00039178,2]
[357611902,1744235510802,-500.0,0.00039178,2]
[357611903,1744235510811,-500.0,0.00039178,2]
[357611904,1744235510821,-500.0,0.00039178,2]
[357611905,1744235510830,-500.0,0.00039178,2]
[357611906,1744235510840,-1158.53,0.00039178,2]
[357611907,1744235510849,-549.8,0.00039178,2]
[357611908,1744235510861,-500.0,0.00039178,2]
[357611909,1744235510871,-500.0,0.00039178,2]
[357611910,1744235510880,-500.0,0.00039178,2]
[357611911,1744235510890,-500.0,0.00039178,2]
[357611912,1744235510900,-500.0,0.00039178,2]
[357611913,1744235510909,-2575.45,0.00039178,2]
[357611914,1744235510919,-839.12,0.00039178,2]
[357611915,1744235510928,-500.0,0.00039178,2]
[357611916,1744235510937,-500.0,0.00039178,2]
[357611917,1744235510947,-1417.52,0.00039178,2]
[357611918,1744235510957,-375.65,0.00039178,2]
[357611919,1744235510967,-500.0,0.00039178,2]
[357611920,1744235510976,-449.58159318,0.00039178,2]
[357611921,1744235510986,-2351.29,0.00039178,2]
[357611922,1744235510996,-500.0,0.00039178,2]
[357611923,1744235511005,-925.42,0.00039178,2]
[357611924,1744235511015,-500.0,0.00039178,2]
[357611925,1744235511024,-500.0,0.00039178,2]
[357611926,1744235511034,-433.91881184,0.00039178,2]
[357611927,1744235511044,-500.0,0.00039178,2]
[357611928,1744235511054,-500.0,0.00039178,2]
[357611929,1744235511064,-4543.65,0.00039178,2]
[357611930,1744235511074,-500.0,0.00039178,2]
[357611931,1744235511084,-589.28,0.00039178,2]
[357611932,1744235511094,-500.0,0.00039178,2]
[357611933,1744235511104,-1261.56,0.00039178,2]
[357611934,1744235511114,-908.44,0.00039178,2]
[357611935,1744235511124,-867.74,0.00039178,2]
[357611936,1744235511134,-907.73,0.00039178,2]
[357611937,1744235511144,-660.09,0.00039178,2]
[357611938,1744235511153,-1190.9,0.00039178,2]
[357611939,1744235511163,-4887.83,0.00039178,2]
[357611940,1744235511173,-500.0,0.00039178,2]
[357611941,1744235511183,-1267.15,0.00039178,2]
[357611942,1744235511193,-500.0,0.00039178,2]
[357611943,1744235511202,-500.0,0.00039178,2]
[357611944,1744235511211,-500.0,0.00039178,2]
[357611945,1744235511221,-500.0,0.00039178,2]
[357611946,1744235511230,-575.82,0.00039178,2]
[357611947,1744235511240,-774.45,0.00039178,2]
[357611948,1744235511250,-2640.49,0.00039178,2]
[357611949,1744235511259,-929.61,0.00039178,2]
[357611950,1744235511269,-570.35,0.00039178,2]
[357611951,1744235511278,-1204.87,0.00039178,2]
[357611952,1744235511288,-586.45124632,0.00039178,2]
[357611953,1744235511301,-775.07,0.00039178,2]
[357611954,1744235511311,-561.8,0.00039178,2]
[357611955,1744235511321,-535.49,0.00039178,2]
[357611956,1744235511330,-500.0,0.00039178,2]
[357611957,1744235511339,-852.59,0.00039178,2]
[357611958,1744235511349,-706.53,0.00039178,2]
[357611959,1744235511360,-1140.24867098,0.00039178,2]
[357611960,1744235511369,-1156.21,0.00039178,2]
[357611961,1744235511379,-1013.54,0.00039178,2]
[357611962,1744235511388,-1279.0,0.00039178,2]
[357611963,1744235511398,-1035.19,0.00039178,2]
[357611964,1744235511407,-151.0,0.00039178,14]
[357611965,1744235511416,-846.03,0.00039178,2]
[357611966,1744235511426,-151.0,0.00039178,2]
[357611967,1744235511435,-2136.41,0.00039178,2]
[357611968,1744235511445,-2159.739625,0.00039178,14]
[357611969,1744235511460,-500.0,0.00039178,2]
[357611970,1744235511469,-500.0,0.00039178,2]
[357611971,1744235511479,-500.0,0.00039178,2]
[357611972,1744235511489,-500.0,0.00039178,2]
[357611973,1744235511501,-2159.739618,0.00039178,14]
[357611974,1744235511510,-500.0,0.00039178,2]
[357611975,1744235511519,-4235.64,0.00039178,2]
[357611976,1744235511529,-592.54,0.00039178,2]
[357611977,1744235511538,-1028.37,0.00039178,2]
[357611978,1744235511548,-655.91,0.00039178,2]
[357611979,1744235511557,-774.63,0.00039178,2]
[357611980,1744235511567,-254.959028,0.00039178,14]
[357611981,1744235511576,-500.0,0.00039178,2]
[357611982,1744235511586,-668.99,0.00039178,2]
[357611983,1744235511595,-635.46,0.00039178,2]
[357611984,1744235511606,-500.0,0.00039178,2]
[357611985,1744235511615,-500.0,0.00039178,2]
[357611986,1744235511625,-771.42,0.00039178,2]
[357611987,1744235511635,-1045.7471011,0.00039178,30]
[357611988,1744235511644,-254.959032,0.00039178,14]
[357611989,1744235511653,-500.0,0.00039178,2]
[357611990,1744235511663,-510.94030602,0.00039178,2]
[357611991,1744235511672,-500.0,0.00039178,2]
[357611992,1744235511682,-500.0,0.00039178,2]
[357611993,1744235511691,-622.0758866,0.00039178,2]
[357611994,1744235511701,-631.73,0.00039178,2]
[357611995,1744235511710,-500.0,0.00039178,2]
[357611996,1744235511719,-1805.21,0.00039178,2]
[357611997,1744235511729,-500.0,0.00039178,2]
[357611998,1744235511738,-500.0,0.00039178,2]
[357611999,1744235511747,-500.0,0.00039178,2]
[357612000,1744235511757,-2082.58,0.00039178,2]
[357612001,1744235511767,-178.69909028,0.00039178,2]
[357612002,1744235511776,-196.03297861,0.00039178,2]
[357612003,1744235511786,-500.0,0.00039178,2]
[357612004,1744235511795,-950.96,0.00039178,2]
[357612005,1744235511805,-532.10649586,0.00039178,2]
[357612006,1744235511814,-509.46507267,0.00039178,2]
[357612007,1744235511824,-548.27,0.00039178,2]
[357612008,1744235511833,-777.86,0.00039178,2]
[357612009,1744235511843,-500.0,0.00039178,2]
[357612010,1744235511857,-720.17,0.00039178,2]
[357612011,1744235511875,-500.0,0.00039178,2]
[357612012,1744235511893,-553.97840235,0.00039178,2]
[357612013,1744235511913,-500.0,0.00039178,2]
[357612014,1744235511928,-1059.64,0.00039178,2]
[357612015,1744235511946,-587.39,0.00039178,2]
[357612016,1744235511965,-1208.61,0.00039178,2]
[357612017,1744235511987,-174266.75,0.00039178,2]
[357612018,1744235512004,-151.0,0.00039178,14]
[357612019,1744235512022,-1106.78,0.00039178,2]
[357612020,1744235512040,-1260.1,0.00039178,2]
[357612021,1744235512055,-222.26123853,0.00039178,2]
[357612022,1744235512073,-500.0,0.00039178,2]
[357612023,1744235512086,-500.0,0.00039178,2]
[357612024,1744235512104,-738.67,0.00039178,2]
[357612025,1744235512121,-500.0,0.00039178,2]
[357612026,1744235512137,-1252.62,0.00039178,2]
[357612027,1744235512153,-1523.75,0.00039178,2]
[357612028,1744235512170,-500.0,0.00039178,2]
[357612029,1744235512185,-500.0,0.00039178,2]
[357612030,1744235512201,-500.0,0.00039178,2]
[357612031,1744235512217,-818.49,0.00039178,2]
[357612032,1744235512233,-1025.1,0.00039178,2]
[357612033,1744235512247,-1179.84,0.00039178,2]
[357612034,1744235512266,-2893.36,0.00039178,2]
[357612035,1744235512283,-500.0,0.00039178,2]
[357612036,1744235512299,-764.1,0.00039178,2]
[357612037,1744235512315,-21329.92,0.00039178,2]
[357612038,1744235512331,-707.54,0.00039178,2]
[357612039,1744235512347,-500.0,0.00039178,2]
[357612040,1744235512364,-1217.62,0.00039178,2]
[357612041,1744235512381,-500.0,0.00039178,2]
[357612042,1744235512396,-508.14139324,0.00039178,2]
[357612043,1744235512412,-173.92345241,0.00039178,2]
[357612044,1744235512429,-500.0,0.00039178,2]
[357612045,1744235512457,-653.91,0.00039178,2]
[357612046,1744235512473,-2083.86,0.00039178,2]
[357612047,1744235512489,-500.0,0.00039178,2]
[357612048,1744235512505,-2729.49,0.00039178,2]
[357612049,1744235512521,-545.55,0.00039178,2]
[357612050,1744235512538,-500.0,0.00039178,2]
[357612051,1744235512553,-500.0,0.00039178,2]
[357612052,1744235512569,-510.38,0.00039178,2]
[357612053,1744235512591,-1954.17,0.00039178,2]
[357612054,1744235512608,-1354.05,0.00039178,2]
[357612055,1744235512624,-814.9,0.00039178,2]
[357612056,1744235512641,-500.0,0.00039178,2]
[357612057,1744235512656,-500.0,0.00039178,2]
[357612058,1744235512672,-1048.37,0.00039178,2]
[357612059,1744235512688,-317.612319,0.00039178,14]
[357612060,1744235512705,-500.0,0.00039178,2]
[357612061,1744235512721,-500.0,0.00039178,2]
[357612062,1744235512736,-500.0,0.00039178,2]
[357612063,1744235512752,-506.81160882,0.00039178,2]
[357612064,1744235512768,-500.0,0.00039178,2]
[357612065,1744235512784,-4649.78,0.00039178,2]
[357612066,1744235512800,-1964.65,0.00039178,2]
[357612067,1744235512817,-317.612326,0.00039178,14]
[357612068,1744235512834,-500.0,0.00039178,2]
[357612069,1744235512854,-500.0,0.00039178,2]
[357612070,1744235512871,-694.5,0.00039178,2]
[357612071,1744235512887,-500.0,0.00039178,2]
[357612072,1744235512904,-279.68567961,0.00039178,2]
[357612073,1744235512921,-506.3119022,0.00039178,2]
[357612074,1744235512938,-1127.83,0.00039178,2]
[357612075,1744235512953,-500.0,0.00039178,2]
[357612076,1744235512970,-507.13,0.00039178,2]
[357612077,1744235512987,-500.0,0.00039178,2]
[357612078,1744235513005,-570.34,0.00039178,2]
[357612079,1744235513022,-1498.03,0.00039178,2]
[357612080,1744235513039,-2525.83,0.00039178,2]
[357612081,1744235513055,-775.82,0.00039178,2]
[357612082,1744235513072,-500.0,0.00039178,2]
[357612083,1744235513088,-512.07271284,0.00039178,2]
[357612084,1744235513106,-955.21,0.00039178,2]
[357612085,1744235513123,-500.0,0.00039178,2]
[357612086,1744235513140,-1151.05,0.00039178,2]
[357612087,1744235513157,-500.0,0.00039178,2]
[357612088,1744235513173,-500.0,0.00039178,2]
[357612089,1744235513191,-500.0,0.00039178,2]
[357612090,1744235513208,-969.06,0.00039178,2]
[357612091,1744235513232,-500.0,0.00039178,2]
[357612092,1744235513247,-500.0,0.00039178,2]
[357612093,1744235513263,-500.0,0.00039178,2]
[357612094,1744235513280,-511.52,0.00039178,2]
[357612095,1744235513295,-686.74,0.00039178,2]
[357612096,1744235513311,-507.91,0.00039178,2]
[357612097,1744235513327,-5051.26,0.00039178,2]
[357612098,1744235513344,-500.0,0.00039178,2]
[357612099,1744235513359,-500.0,0.00039178,2]
[357612100,1744235513376,-757.52,0.00039178,2]
[357612101,1744235513391,-1665.37,0.00039178,2]
[357612102,1744235513407,-172.56,0.0003918,2]
[357612103,1744235513422,-445.28,0.0003918,2]
[357612104,1744235513438,-1436.36,0.0003918,2]
[357612105,1744235513457,-150.0,0.0003918,2]
[357612106,1744235513473,-348.29,0.0003918,2]
[357612107,1744235513490,-445.28,0.0003918,2]
[357612108,1744235513507,-150.0,0.0003918,2]
[357612109,1744235513524,-348.29,0.0003918,2]
[357612110,1744235513541,-150.0,0.0003918,2]
[357612111,1744235513557,-150.0,0.0003918,2]
[357612112,1744235513572,-445.28,0.0003918,2]
[357612113,1744235513588,-150.0,0.0003918,2]
[357612114,1744235513603,-348.29,0.0003918,2]
[357612115,1744235513619,-150.0,0.0003918,2]
[357612116,1744235513636,-445.28,0.0003918,2]
[357612117,1744235513652,-348.29,0.0003918,2]
[357612118,1744235513668,-150.0,0.0003918,2]
[357612119,1744235513684,-445.28,0.0003918,2]
[357612120,1744235513703,-150.0,0.0003918,2]
[357612121,1744235513722,-150.0,0.0003918,2]
[357612122,1744235513741,-348.29,0.0003918,2]
[357612123,1744235513758,-151.041005,0.00039198,120]
[357612124,1744235513776,-350.84203182,0.00039221,5]
[357612125,1744235513792,-266.83495689,0.00039352,2]
[357612126,1744235513809,-500.0,0.00039397,2]
[357612127,1744235513826,-500.0,0.00039397,2]
[357612128,1744235513841,-500.0,0.00039397,2]
[357612129,1744235513857,-500.0,0.00039397,2]
[357612130,1744235513873,-500.0,0.00039397,2]
[357612131,1744235513890,-500.0,0.00039397,2]
[357612132,1744235513905,-500.0,0.00039397,2]
[357612133,1744235513920,-500.0,0.00039397,2]
[357612134,1744235514219,-500.0,0.00039397,2]
[357612135,1744235514252,-500.0,0.00039397,2]
[357612136,1744235514262,-500.0,0.00039397,2]
[357612137,1744235514272,-151.0,0.00039425,14]
[357612138,1744235514282,-500.0,0.00039451,2]
[357612139,1744235514291,-500.0,0.00039451,2]
[357612140,1744235514301,-500.0,0.00039451,2]
[357612141,1744235514310,-500.0,0.00039451,2]
[357612142,1744235514319,-500.0,0.00039451,2]
[357612143,1744235514329,-500.0,0.00039451,2]
[357612144,1744235514338,-500.0,0.00039451,2]
[357612145,1744235514349,-500.0,0.00039451,2]
[357612146,1744235514358,-500.0,0.00039451,2]
[357612147,1744235514367,-500.0,0.00039451,2]
[357612148,1744235514377,-150.0,0.00039451,3]
[357612149,1744235514386,-150.0,0.00039451,3]
[357612150,1744235514396,-532.09805048,0.00039452,2]
[357612151,1744235514406,-500.0,0.00039452,2]
[357612152,1744235514415,-500.0,0.00039452,2]
[357612153,1744235514425,-500.0,0.00039452,2]
[357612154,1744235514434,-299.90116383,0.00039452,2]
[357612155,1744235514443,-597.59499838,0.00039452,2]
[357612156,1744235514458,-503.56612383,0.00039452,2]
[357612157,1744235514468,-500.0,0.00039452,2]
[357612158,1744235514479,-500.0,0.00039452,2]
[357612159,1744235514489,-500.0,0.00039452,2]
[357612160,1744235514500,-1000.0,0.00039452,2]
[357612161,1744235514510,-500.0,0.00039452,2]
[357612162,1744235514520,-500.0,0.00039452,2]
[357612163,1744235514531,-768.82,0.00039452,2]
[357612164,1744235514540,-1033.22,0.00039452,2]
[357612165,1744235514550,-500.0,0.00039452,2]
[357612166,1744235514559,-500.0,0.00039452,2]
[357612167,1744235514569,-176.95231631,0.00039452,2]
[357612168,1744235514579,-690.19,0.00039452,2]
[357612169,1744235514588,-500.0,0.00039452,2]
[357612170,1744235514597,-541.10274375,0.00039452,2]
[357612171,1744235514607,-500.0,0.00039452,2]
[357612172,1744235514616,-653.93,0.00039452,2]
[357612173,1744235514625,-500.0,0.00039452,2]
[357612174,1744235514634,-500.0,0.00039452,2]
[357612175,1744235514644,-500.0,0.00039452,2]
[357612176,1744235514654,-500.0,0.00039452,2]
[357612177,1744235514663,-500.0,0.00039452,2]
[357612178,1744235514672,-500.0,0.00039452,2]
[357612179,1744235514681,-500.0,0.00039452,2]
[357612180,1744235514691,-163.6393923,0.00039452,2]
[357612181,1744235514700,-562.39,0.00039452,2]
[357612182,1744235514709,-500.0,0.00039452,2]
[357612183,1744235514718,-500.0,0.00039452,2]
[357612184,1744235514728,-500.0,0.00039452,2]
[357612185,1744235514738,-500.0,0.00039452,2]
[357612186,1744235514747,-500.0,0.00039452,2]
[357612187,1744235514757,-500.0,0.00039452,2]
[357612188,1744235514766,-316.81705994,0.00039452,2]
[357612189,1744235514775,-291.41278176,0.00039452,2]
[357612190,1744235514784,-523.63,0.00039452,2]
[357612191,1744235514794,-575.25,0.00039452,2]
[357612192,1744235514804,-509.34434291,0.00039452,2]
[357612193,1744235514813,-552.77153519,0.00039452,2]
[357612194,1744235514824,-528.6376056,0.00039452,2]
[357612195,1744235514833,-500.0,0.00039452,2]
[357612196,1744235514842,-643.66,0.00039452,2]
[357612197,1744235514852,-500.0,0.00039452,2]
[357612198,1744235514861,-500.0,0.00039452,2]
[357612199,1744235514870,-500.0,0.00039452,2]
[357612200,1744235514879,-517.26,0.00039452,2]
[357612201,1744235514889,-500.0,0.00039452,2]
[357612202,1744235514898,-500.0,0.00039452,2]
[357612203,1744235514908,-509.1,0.00039452,2]
[357612204,1744235514917,-171.79524305,0.00039452,2]